Cogmind - Beta 13 @@@ ROGUE MODE // 2024.04.07 @ 13:08:54 Player: Ciaphas Result: Self-destructed Performance ------------- Evolutions (2) 1000 Regions Visited (5) 1000 Robots Destroyed (23) 115 Value Destroyed (530) 530 Prototype IDs (25) 500 Alien Tech Used (0) 0 Bonus (426) 426 TOTAL SCORE: 3571 Bonus ------- Follower Combat Kills 134 Aligned with FarCom 300 Friendly Fire -8 Cogmind --------- Core Integrity 550/550 Matter 278/300 Energy 100/100 System Corruption 0% Temperature Cool (11) Movement Treading (160) Location -8/Materials Parts ------- > --- POWER (1) -------- (None) > --- PROPULSION (4) --- Light Treads Light Treads > --- UTILITY (4) ------ Large Storage Unit Light Armor Plating Medium Armor Plating > --- WEAPON (2) ------- Assault Rifle Assault Rifle > --- INVENTORY (15) --- Ion Engine Light Treads High-capacity Battery (250) High-capacity Matter Pod (200) Sensor Array Sensor Array Signal Interpreter ECM Suite Assault Rifle Rocket Launcher Datajack Mining Laser Flail Peak State ------------ > --- POWER ------------ Light Nuclear Core > --- PROPULSION ------- Light Treads Light Treads > --- UTILITY ---------- Large Storage Unit Light Armor Plating Medium Armor Plating > --- WEAPON ----------- Assault Rifle Assault Rifle > --- INVENTORY -------- Ion Engine Light Treads High-capacity Battery High-capacity Matter Pod Sensor Array Sensor Array Signal Interpreter ECM Suite Assault Rifle Rocket Launcher Datajack Mining Laser Flail [Rating: 12] Favorites ----------- Power Light Nuclear Core Engine Ion Engine Power Core Light Nuclear Core Propulsion Light Treads Treads Light Treads Leg Aluminum Leg Utility Large Storage Unit Device Sensor Array Storage Large Storage Unit Protection Light Armor Plating Weapon Assault Rifle Energy Gun Medium Laser Ballistic Gun Assault Rifle Launcher Rocket Launcher Impact Weapon Flail Build | -11 -10 -10 -10 -9 -8 ------- Run | Yrd Mat Min Exi Min Mat Slots Evolved 4 | . . . . . 4 Power . | . . . . . . Propulsion 2 | . . . . . 2 Utility 2 | . . . . . 2 Weapon . | . . . . . . Parts Attached 23 | 1 12 5 . 4 1 Power 2 | . 2 . . . . Engine 1 | . 1 . . . . Core 1 | . 1 . . . . Reactor . | . . . . . . Propulsion 2 | . 2 . . . . Treads 2 | . 2 . . . . Leg . | . . . . . . Wheel . | . . . . . . Hover . | . . . . . . Flight . | . . . . . . Utility 5 | . 3 1 . . 1 Device 2 | . 2 . . . . Storage 1 | . 1 . . . . Processor . | . . . . . . Hackware . | . . . . . . Protection 2 | . . 1 . . 1 Artifact . | . . . . . . Weapon 14 | 1 5 4 . 4 . Energy Gun . | . . . . . . Energy Cannon . | . . . . . . Ballistic Gun 8 | 1 3 2 . 2 . Ballistic Cannon . | . . . . . . Launcher 5 | . 1 2 . 2 . Special Weapon . | . . . . . . Impact Weapon 1 | . 1 . . . . Slashing Weapon . | . . . . . . Piercing Weapon . | . . . . . . Special Melee Weapon . | . . . . . . Unidentified Prototypes . | . . . . . . Parts Lost 1 | . . . . . 1 Power 1 | . . . . . 1 Propulsion . | . . . . . . Utility . | . . . . . . Weapon . | . . . . . . Highest Loss Streak 1 | . . . . . 1 To Critical Strikes . | . . . . . . Average Slot Usage (%) 98 | . 98 100 100 100 67 Engine 1 | . 4 . . . . Core 12 | . 9 14 14 14 9 Treads 23 | . 17 28 28 28 18 Leg 4 | . 10 . . . . Device 6 | . 12 4 . . . Storage 13 | . 14 14 14 14 9 Protection 7 | . . 9 14 14 13 Ballistic Gun 26 | . 25 27 28 26 18 Naked Turns . | . . . . . . Heaviest Build 39 | 14 30 32 32 34 39 Greatest Support 40 | 20 40 40 40 40 40 Greatest Overweight (x) . | . . . . . . Average Overweight (x) . | . . . . . . Largest Inventory Capacity 15 | 8 15 15 15 15 15 Average Capacity 13 | 8 12 15 15 15 15 Most Carried 14 | 6 11 13 14 14 13 Average Carried 10 | 6 7 12 13 13 13 Final Capacity 15 | 8 15 15 15 15 15 Final Carried 14 | 5 11 13 14 13 13 Class Distribution -------------------- 100% | Mutant Dominant Class ---------------- Mutant | -10/Materials Mutant | -10/Mines Mutant | -10/Exiles Mutant | -9/Mines Mutant | -8/Materials Resources | -11 -10 -10 -10 -9 -8 ----------- Run | Yrd Mat Min Exi Min Mat Matter Collected 928 | 200 430 162 . 136 . Remotely . | . . . . . . Salvage Created 637 | . 464 62 . 111 . Parts 34 | . 21 6 . 7 . Haulers Intercepted 1 | . 1 . . . . Recyclers Shooed . | . . . . . . Parts Field Recycled . | . . . . . . Retrieved Matter . | . . . . . . Parts Self-Destructed . | . . . . . . Prevented . | . . . . . . Kills | -11 -10 -10 -10 -9 -8 ------- Run | Yrd Mat Min Exi Min Mat Combat Hostiles Destroyed 19 | . 8 5 . 6 . Guns 9 | . 8 1 . . . AOE 10 | . . 4 . 6 . Classes Destroyed 5 | . 3 1 . 1 . Hauler 1 | . 1 . . . . Recycler 1 | . . . . 1 . Watcher 2 | . 2 . . . . Swarmer 8 | . . 4 . 4 . Grunt 11 | . 8 1 . 2 . Best Kill Streak 4 | . 2 2 . 4 . Combat Bots Only 4 | . 2 2 . 4 . Max Kills in Single Turn 2 | . 1 2 . 2 . Gunslinging . | . . . . . . Exploded 2 | . . 2 . 2 . Melee . | . . . . . . Uniques/NPCs Destroyed . | . . . . . . Combat | -11 -10 -10 -10 -9 -8 -------- Run | Yrd Mat Min Exi Min Mat Hostile Shots Fired 68 | . 24 23 . 11 10 Missed 19 | . 7 7 . 3 2 Damage Taken 591 | . 197 172 . 104 118 Core 80 | . 34 46 . . . Absorbed by Shields . | . . . . . . Core Remaining (%) 84 | 100 . . . 68 . Volleys Fired 49 | . 35 9 . 5 . Largest 2 | . 2 2 . 1 . Hottest 70 | . 70 53 . 33 . Shots Fired 92 | . 70 17 . 5 . Gun 85 | . 70 15 . . . Cannon . | . . . . . . Launcher 7 | . . 2 . 5 . Special . | . . . . . . Kinetic 83 | . 68 15 . . . Thermal 2 | . 2 . . . . Explosive 7 | . . 2 . 5 . Electromagnetic . | . . . . . . Robot Hit Streak 12 | . 12 10 . 2 . Robot Miss Streak 2 | . 2 2 . 2 . Penetration Max . | . . . . . . Secondary Targets . | . . . . . . Shots Hit Robots 60 | . 50 8 . 2 . Core Hits 34 | . 19 5 . 10 . Critical Kills 1 | . 1 . . . . Critical Parts Destroyed 1 | . 1 . . . . Critical Strikes 2 | . 2 . . . . Destroy 2 | . 2 . . . . Melee Attacks 2 | . 2 . . . . Impact 2 | . 2 . . . . Slashing . | . . . . . . Piercing . | . . . . . . Sneak Attacks . | . . . . . . Combat Hostiles . | . . . . . . Follow-up Attacks . | . . . . . . Damage Inflicted 1393 | . 640 377 . 376 . Guns 741 | . 640 101 . . . Cannons . | . . . . . . Explosions 639 | . . 276 . 363 . Melee . | . . . . . . Ramming 13 | . . . . 13 . Kinetic 728 | . 627 101 . . . Thermal 13 | . 13 . . . . Explosive 639 | . . 276 . 363 . Electromagnetic . | . . . . . . Impact . | . . . . . . Slashing . | . . . . . . Piercing . | . . . . . . Highest Corruption . | . . . . . . Average Corruption . | . . . . . . Corruption Purged . | . . . . . . Corruption Blocked . | . . . . . . Overload Shots . | . . . . . . Overflow Damage . | . . . . . . Projectiles . | . . . . . . Explosions . | . . . . . . Melee . | . . . . . . Knockbacks . | . . . . . . Impact . | . . . . . . Kinetic . | . . . . . . Secondary . | . . . . . . Self-Inflicted Damage . | . . . . . . Shots . | . . . . . . Rammed . | . . . . . . Targets Rammed 1 | . . . . 1 . Kicked . | . . . . . . Crushed 1 | . . . . 1 . Highest Temperature 28 | . 18 7 . 28 11 Average Temperature 6 | . 5 4 . 8 11 Received Heat Transfer 282 | . 108 54 . 48 72 Siege Activations . | . . . . . . Robots Corrupted . | . . . . . . Combat Hostiles . | . . . . . . Parts Fried . | . . . . . . Impact Corruptions . | . . . . . . Robots Melted . | . . . . . . Combat Hostiles . | . . . . . . Parts Melted . | . . . . . . Heat Transferred 37 | . 37 . . . . Parts Sabotaged . | . . . . . . Parts Stolen . | . . . . . . Parts Stripped . | . . . . . . Power Chain Reactions . | . . . . . . Alert | -11 -10 -10 -10 -9 -8 ------- Run | Yrd Mat Min Exi Min Mat Peak Influence 319 | . 211 319 . 238 92 Initial 92 | . . 47 . . 92 Average 113 | . 72 179 . 130 86 Maximum Alert Level 1 | . 1 1 . 1 . Low Security (%) 83 | 100 94 56 . 91 100 Level 1 16 | . 5 43 . 8 . Level 2 . | . . . . . . Level 3 . | . . . . . . Level 4 . | . . . . . . Level 5 . | . . . . . . High Security . | . . . . . . Max Security . | . . . . . . Squads Dispatched 6 | . 3 1 . . 2 Investigation 1 | . 1 . . . . Extermination . | . . . . . . Reinforcement 4 | . 2 . . . 2 Assault 1 | . . 1 . . . Garrison . | . . . . . . Intercept . | . . . . . . Searches Triggered . | . . . . . . Construction Impeded . | . . . . . . Haulers Reinforced . | . . . . . . Active Scanning Responses . | . . . . . . Cargo Convoy Interrupts . | . . . . . . Stealth | -11 -10 -10 -10 -9 -8 --------- Run | Yrd Mat Min Exi Min Mat Distress Signals . | . . . . . . Communications Jammed . | . . . . . . Distress Signals . | . . . . . . Times Spotted 38 | . 14 11 . 7 6 Peak Tracking Total 4 | . 3 4 . 4 4 Tactical Retreats 1 | . . 1 . . . Traps | -11 -10 -10 -10 -9 -8 ------- Run | Yrd Mat Min Exi Min Mat Traps Triggered 1 | . 1 . . . . Indirectly . | . . . . . . Trap Hack Attempts . | . . . . . . Triggered . | . . . . . . Disarmed . | . . . . . . Reprogrammed . | . . . . . . Reused . | . . . . . . Traps Extracted . | . . . . . . Installed . | . . . . . . Triggered . | . . . . . . Machines | -11 -10 -10 -10 -9 -8 ---------- Run | Yrd Mat Min Exi Min Mat Machines Disabled 1 | . . . . 1 . Max in Single Turn 1 | . . . . 1 . Machines Repaired . | . . . . . . Machines Dismantled . | . . . . . . Machines Sabotaged . | . . . . . . Overloaded Fab Kills . | . . . . . . Hacking | -11 -10 -10 -10 -9 -8 --------- Run | Yrd Mat Min Exi Min Mat Machines Accessed 8 | . 6 . 2 . . Terminals 4 | . 4 . . . . Fabricators . | . . . . . . Repair Stations . | . . . . . . Recycling Units 2 | . 2 . . . . Scanalyzers . | . . . . . . Garrison Access . | . . . . . . Total Hacks 17 | . 15 . 2 . . Successful 11 | . 9 . 2 . . Failed 6 | . 6 . . . . Catastrophic 2 | . 2 . . . . Database Lockouts . | . . . . . . Manual 3 | . 2 . 1 . . Terminals 10 | . 10 . . . . Fabricators . | . . . . . . Repair Stations . | . . . . . . Recycling Units 5 | . 5 . . . . Scanalyzers . | . . . . . . Garrison Access . | . . . . . . Terminal Hacks 5 | . 3 . 2 . . Record 1 | . . . 1 . . Prototype ID Bank 1 | . 1 . . . . Alert Level 1 | . 1 . . . . Zone Layout 1 | . 1 . . . . Derelict Proto ID Bank 1 | . . . 1 . . Fabricator Hacks . | . . . . . . Repair Station Hacks . | . . . . . . Recycling Unit Hacks 4 | . 4 . . . . Report Inventory 2 | . 2 . . . . Retrieve Components 2 | . 2 . . . . Scanalyzer . | . . . . . . Garrison Access Hacks . | . . . . . . Unauthorized Hacks 2 | . 2 . . . . Terminals 2 | . 2 . . . . Botnet 1 | . 1 . . . . Operators 1 | . 1 . . . . Fabricators . | . . . . . . Repair Stations . | . . . . . . Recycling Units . | . . . . . . Scanalyzers . | . . . . . . Garrison Access . | . . . . . . Data Cores Recovered . | . . . . . . Used . | . . . . . . Hacking Detections 3 | . 3 . . . . Full Trace Events 1 | . 1 . . . . Feedback Events . | . . . . . . Feedback Blocked . | . . . . . . Robot Schematics Acquired . | . . . . . . Robots Built . | . . . . . . Authchips . | . . . . . . Time . | . . . . . . Total Robot Build Rating . | . . . . . . Part Schematics Acquired . | . . . . . . Parts Built . | . . . . . . Authchips . | . . . . . . Time . | . . . . . . Total Part Build Rating . | . . . . . . Parts Repaired . | . . . . . . Time . | . . . . . . Parts Recycled . | . . . . . . Recycled Matter . | . . . . . . Retrieved Matter . | . . . . . . Retrieved Components 3 | . 3 . . . . Parts Scanalyzed . | . . . . . . Part Schematics Acquired . | . . . . . . Parts Damaged . | . . . . . . Bothacking | -11 -10 -10 -10 -9 -8 ------------ Run | Yrd Mat Min Exi Min Mat Used RIF Installer . | . . . . . . Robots Hacked . | . . . . . . Non-combat . | . . . . . . Combat . | . . . . . . Robot Hacks Applied . | . . . . . . Relay Couplers Released . | . . . . . . Fabnet Peak Effective % . | . . . . . . Robots Rewired . | . . . . . . Allies Hacked . | . . . . . . Hacks Repelled . | . . . . . . Allies | -11 -10 -10 -10 -9 -8 -------- Run | Yrd Mat Min Exi Min Mat Total Allies 1 | . . 1 . . . Largest Group 1 | . . 1 1 1 1 Highest-Rated Group 31 | . . 31 31 31 31 Highest-Rated Ally 31 | . . 31 31 31 31 Total Orders . | . . . . . . Ally Attacks 20 | . . 12 . 6 2 Total Damage 334 | . . 210 . 83 41 Kills 6 | . . 5 . 1 . Allies Corrupted . | . . . . . . Allies Melted . | . . . . . . Intel | -11 -10 -10 -10 -9 -8 ------- Run | Yrd Mat Min Exi Min Mat Robot Analysis Total . | . . . . . . Derelict Logs Recovered 2 | . . 1 . 1 . Drone Launches . | . . . . . . Drone Recoveries . | . . . . . . Exploration | -11 -10 -10 -10 -9 -8 ------------- Run | Yrd Mat Min Exi Min Mat Turns Passed 1694 | 2 691 378 355 248 20 Spaces Moved 973 | 1 382 213 222 144 11 Core . | . . . . . . Treads 804 | . 214 213 222 144 11 Legs 169 | 1 168 . . . . Wheels . | . . . . . . Hover . | . . . . . . Flight . | . . . . . . Fastest Speed 120 | 120 120 160 160 160 160 Average Speed 153 | 120 142 160 160 160 160 Slowest Speed 160 | 120 160 160 160 160 160 Overloaded Moves . | . . . . . . Propulsion Burnouts . | . . . . . . Robots Hopped . | . . . . . . Cave-ins Triggered . | . . . . . . Exploration Rate (%) 40 | 2 53 72 60 49 4 Regions Visited 5 Branch Regions 3 Pre-discovered Areas 3 | . . . 1 2 . Known Exits Taken . | . . . . . . Unknown Exits Taken 5 | 1 1 1 1 1 . Scrap Searched 3 | . . 1 . 2 . Spaces Dug 1 | . 1 . . . . Terrain Destroyed 73 | . 1 14 . 58 . Melee 1 | . 1 . . . . Projectile . | . . . . . . AOE 72 | . . 14 . 58 . Terrain Rammed . | . . . . . . Walls Destroyed . | . . . . . . Machines Disabled . | . . . . . . Actions | -11 -10 -10 -10 -9 -8 --------- Run | Yrd Mat Min Exi Min Mat Total 1078 | 2 456 231 222 155 12 Wait 12 | . 8 3 . 1 . Move 968 | . 381 212 221 143 11 Hop . | . . . . . . Pick Up 11 | . 9 1 1 . . Fast Attach 5 | . 3 1 . . 1 Attach . | . . . . . . Detach 2 | . 1 1 . . . Swap 18 | 1 9 4 . 4 . Drop 10 | 1 8 . . 1 . Fire 49 | . 35 9 . 5 . Melee 2 | . 2 . . . . Ram . | . . . . . . Kick . | . . . . . . Crush 1 | . . . . 1 . Escape Stasis . | . . . . . . Rewire . | . . . . . . Trap . | . . . . . . Miscellaneous . | . . . . . . Route ------- -11/Scrapyard -10/Materials (discovered 2 exits: [*Mat] / [*Min]) -10/Mines (discovered 2 exits: [*Mat] / *Exi) -10/Exiles -9/Mines -8/Materials (discovered 1 exit: Fac) History --------- Turn | Location | Event 3 | -11/Scrapyard | Discovered new exit (range 0) 3 | -11/Scrapyard | Entered Materials 314 | -10/Materials | Build established: Mutant 425 | -10/Materials | Discovered new exit (range 16) 677 | -10/Materials | Discovered new exit (range 7) 694 | -10/Materials | Entered Mines 758 | -10/Mines | Met a Derelict testing a Signal Generator 803 | -10/Mines | Learned 2 Materials zone layouts 926 | -10/Mines | Discovered new exit (range 12) 941 | -10/Mines | Received a Rocket Launcher from a helpful Derelict 1064 | -10/Mines | Deemed a non-threat by the Exiles lab entrance 1064 | -10/Mines | Discovered new exit (range 5) 1072 | -10/Mines | Entered Exiles 1072 | -10/Exiles | Accompanied by 1 ally 1111 | -10/Exiles | Met 8R-AWN 1140 | -10/Exiles | Met EX-HEX 1186 | -10/Exiles | Met EX-BIN 1204 | -10/Exiles | Aligned with FarCom system 1205 | -10/Exiles | Given EX-Vault access code 1242 | -10/Exiles | Opened EX-Vault 1279 | -10/Exiles | Warned to stay clear of 0b10 Research branches 1327 | -10/Exiles | Met EX-DEC 1335 | -10/Exiles | Learned location of Zion (-6) 1414 | -10/Exiles | Discovered new exit (range 10) 1427 | -10/Exiles | Entered Mines 1427 | -9/Mines | Accompanied by 1 ally 1428 | -9/Mines | Learned location of Storage (-8) 1464 | -9/Mines | Met a Derelict bent on vengeance 1508 | -9/Mines | Found a hidden stash of uninstalled traps 1659 | -9/Mines | Discovered new exit (range 5) 1675 | -9/Mines | Entered Materials 1675 | -8/Materials | Accompanied by 1 ally 1675 | -8/Materials | Evolved 4 slots: Propulsion x2, Utility x2 1676 | -8/Materials | Identified exit to Factory 1695 | -8/Materials | Self-destructed Last Messages --------------- 01664_ The unstable cave ceiling collapses. 01667_ Acquired 22 matter. 01671_ The unstable cave ceiling collapses. 01671_ Acquired 17 matter. PARAMETERS=PROPULSION+2,UTILITY+2 LOCATION=UNKNOWN GOAL=ESCAPE 01675_ Receiving FarCom transmissions... Loading 2 Materials zones... 01680_ O-16 Technician: "IFF HANDSHAKE FAILED. SECURING TERMINAL." 01680_ Acquired Med. Armor Plating. 01688_ ALERT: Hostiles spotted, dispatching reinforcements to Terminal M010. 01690_ 59-1WB(g) destroyed. 01693_ O-16 Technician: "IFF HANDSHAKE FAILED. SECURING TERMINAL." 01694_ O-16 Technician uses terminal to summon reinforcements. 01694_ ALERT: Hostiles spotted, dispatching reinforcements to Terminal M009. 01694_ O-16 Technician locks terminal. 01694_ Lgt. Nuclear Core destroyed. Map ----- +----------------------------------------------------+ | ?????????????????????????????????????????????????? | | ?????????????????????????????????????????????????? | | ?????????????????????????????????????????????????? | | ?????????????????????????????????????????????????? | | ?????????????????????????????????????????????????? | | ?????????????????????????????????????????????????? | | ?????????????????????????????????????????????????? | | ?????????????????????????????????????????????????? | | ??????????????????????????? ???????????????????? | | ??????????????????????????? #??????????????????? | | ??????????????????????????? +??????????????????? | | ??????????????????????????? #??????????????????? | | ??????????????????????????? #??????????????????? | | ???????????????????###????# #??????????????????? | | ???????????????????? ???# r#??????????????????? | | ???????????????????? ???# #??????????????????? | | ????????????????????? ???# #??????????????????? | | ????????????????????? "??# +??????????????????? | | ?????????????????????? "??# [ #??????????????????? | | ?????????????????????? ??#!% #??????????????????? | | ???????????????????####;### ! #??????????????????? | | ???????????????????# #??????????????????? | | ???????????######### #??????????????????? | | ??????????? #??????????????????? | | ?????????????????# #??????????????????? | | ?????????????????# @ #??????????????????? | | ?????????????????# #??????????????????? | | ?????????????????# g ! #??????????????????? | | ?????????????????# ggg ###??????????????????? | | ?????????????????# "g" #????????????????? | | ?????????????????# "G" #????????????????? | | ???????????????? + " #????????????????? | | ?????????????? # #????????????????? | | ?????????????"" ?# o #????????????????? | | ?????????????????##"T"###+##### ???????????????? | | ??????????????????####?????????### ??????????????? | | ???????????????????????????????????#?????????????? | | ?????????????????????????????????????????????????? | | ?????????????????????????????????????????????????? | | ?????????????????????????????????????????????????? | | ?????????????????????????????????????????????????? | | ?????????????????????????????????????????????????? | | ?????????????????????????????????????????????????? | | | | | | | | | | | | | | | +----------------------------------------------------+ Best States ------------- Heat Dissipation 31 Energy Generation 14 Energy Capacity 250 Matter Stores 300 Matter Capacity 300 Sight Range 16 Robot Scan Range 14 Terrain Scan Density 10 Armor Coverage 375 Evasion (%) 55 Recoil Reduction 2 Item Schematics ----------------- None Robot Schematics ------------------ None Fabricated ------------ Nothing Alien Tech Used ----------------- None Achievements -------------- None Challenges ------------ None Game ------ Seed EtherialCompactNanosword Manual? 0 Play Time 00:12:26 Cumulative 20.7 hours Start 2024.04.07 @ 12:56:51 End 2024.04.07 @ 13:08:54 Sessions 1 Manual Loads 0 Difficulty Rogue Special Mode None Game No. 31 Rogue 31 Adventurer 0 Explorer 0 Win Type - Total 0 Types 0/0/0/0/0/0/0/0/0 Lore% 25 Gallery% 24 Achievement% 30 Wizard Run 0 Options --------- Layout 0 ASCII 0 Keyboard 0 Movement Numpad Keybinds 0 Fullscreen 2 Font 24/X11 Map View 76x50 Zoom Use 0% Tactical HUD 1 Map Filters NONE Filters NONE Steam 1 RUN: 4ec48d3e-061c-4bf2-b140-0f7d3d1f35ae